{"text_format":"1","workbook":"xlsx","n_sheets":3,"sheets":["Instructions","Appraisal","Dictionary"],"not_rendered":{"charts":0,"images":2,"macros":1,"external_links":0,"defined_names":1,"comments":0,"pivot_tables":0},"unopened":[],"bounds":{"document_bytes":16777216,"sheet_cells":100000,"rows_first":2000,"rows_last":500,"rows_between":2000,"halvings":0,"cell_chars":16384,"cell_head_chars":4096},"cells_cut":0,"cells_raw":0,"read":"whole","date_system":"1900"}

{"sheet":"Instructions","index":0,"n_rows":1,"n_cols":1,"rows_kept":1,"cut":false,"hidden":false,"merged":[[0,0,15,19]]}
["INSTRUCTIONS:\n1. The Faculty Annual Appraisal is a protected workbook. All unprotected cells in the Appraisal are fillable. The other parts of rubrics are calculated automatically.\n2. Tab key and/or other keys can be used to select the fillable cells each by each.\n3. SAI Calculation simulator:\n    a. The simulator produces two results into CES (Overall Average of UTSA Evaluation Surveys) and SAI (Student Assessment of Instruction).\n    b. SAI Calculation simulator is based on the formula in II. Student Assessment of Instruction.\n    c. The results of CES and SAI are automatically filled in the two rows: (1) Overall Average Student Evaluation -- CES; (2) Total Points – II. Student Assessment of Instruction -- SAI.\n    d. The maximum of 10 courses can be filled and calculated after clicking the Caculate button.\n    e. N1 represents the number of responders in course 1. The others are same accordingly.\n    f. CES1 represents the simple average of all items 1-7 for course 1 in UTSA Course Evaluation Survey. The others are same accordingly. \n    \n    Notes: Non-filled Ni and CESi are filled automatically as zero. Ni and CESi should be filled in pairs."]

{"sheet":"Appraisal","index":1,"n_rows":356,"n_cols":43,"rows_kept":356,"cut":false,"hidden":false,"merged":[[114,1,114,6],[115,1,115,6],[97,21,97,23],[88,11,88,15],[88,16,88,20],[89,11,89,15],[200,2,200,23],[201,2,201,23],[59,7,59,8],[168,6,168,14],[169,6,169,14],[170,6,170,14],[171,6,171,14],[167,3,167,5],[168,3,168,5],[169,3,169,5],[170,3,170,5],[171,3,171,5],[65,1,65,23],[64,1,64,23],[63,1,63,2],[62,1,62,2],[61,1,61,6],[122,1,122,6],[121,1,121,6],[80,21,80,23],[197,2,197,23],[198,2,198,23],[199,2,199,23],[97,1,97,6],[38,1,38,23],[37,1,37,23],[36,1,36,16],[94,21,94,23],[95,21,95,23],[47,1,47,23],[46,1,46,23],[45,1,45,23],[44,1,44,16],[43,1,43,23],[42,1,42,23],[93,16,93,20],[94,11,94,15],[82,7,82,10],[83,7,83,10],[81,21,81,23],[82,21,82,23],[83,21,83,23],[89,16,89,20],[90,7,90,23],[58,1,58,16],[39,17,39,23],[44,17,44,23],[48,1,48,16],[119,1,119,6],[118,1,118,6],[117,1,117,6],[105,1,105,23],[103,1,103,23],[39,1,39,16],[98,21,98,23],[99,21,99,23],[98,1,98,6],[96,1,96,23],[101,1,101,6],[102,1,102,6],[116,1,116,6],[106,1,106,6],[107,1,107,6],[108,1,108,6],[109,1,109,6],[110,1,110,6],[111,1,111,6],[112,1,112,6],[113,1,113,6],[93,21,93,23],[88,7,88,10],[89,7,89,10],[81,7,81,10],[40,1,40,23],[41,1,41,23],[56,1,56,23],[51,1,51,23],[50,1,50,23],[49,1,49,23],[48,17,48,23],[91,1,91,6],[92,1,92,6],[93,1,93,6],[85,1,85,6],[84,1,84,6],[87,1,87,6],[88,1,88,6],[89,1,89,6],[90,1,90,6],[87,21,87,23],[6,1,6,6],[3,1,4,23],[2,1,2,23],[6,7,6,23],[8,3,8,5],[9,3,9,5],[9,8,9,10],[9,11,9,12],[9,14,9,16],[9,17,9,18],[9,1,9,2],[8,1,8,2],[7,1,7,23],[8,7,8,9],[8,10,8,13],[8,14,8,23],[11,1,11,23],[10,1,10,23],[21,1,21,23],[20,1,20,16],[19,1,19,23],[18,1,18,23],[17,1,17,23],[16,1,16,16],[15,1,15,23],[14,1,14,23],[13,1,13,23],[12,1,12,16],[178,1,178,9],[179,1,179,9],[150,1,150,9],[151,1,151,9],[188,10,188,14],[153,1,153,23],[164,1,164,23],[160,2,160,23],[161,2,161,23],[150,15,150,23],[151,15,151,23],[152,1,152,14],[152,15,152,23],[150,10,150,14],[172,1,172,14],[172,15,172,23],[165,15,165,23],[166,15,166,23],[167,15,167,23],[168,15,168,23],[169,15,169,23],[170,15,170,23],[171,15,171,23],[165,6,165,14],[211,1,211,9],[210,1,210,23],[209,1,209,14],[206,1,206,9],[205,1,205,23],[204,1,204,23],[203,1,203,14],[214,10,214,14],[202,10,202,14],[202,1,202,9],[208,10,208,14],[208,15,208,23],[211,10,211,14],[212,10,212,14],[212,1,212,9],[208,1,208,9],[213,10,213,14],[211,15,211,23],[212,15,212,23],[213,15,213,23],[225,1,225,9],[224,1,224,9],[223,1,223,23],[222,1,222,14],[221,1,221,9],[219,1,219,9],[220,1,220,9],[219,10,219,14],[220,10,220,14],[225,10,225,14],[266,1,266,6],[267,1,267,6],[268,1,268,6],[269,1,269,6],[270,1,270,3],[270,4,270,6],[228,1,228,14],[227,1,227,9],[226,1,226,9],[234,1,234,23],[233,1,233,23],[229,15,229,23],[230,15,230,23],[238,7,238,18],[238,19,238,23],[238,1,238,6],[237,1,237,23],[236,1,236,23],[232,1,232,23],[231,1,231,23],[230,1,230,14],[229,1,229,14],[242,19,242,23],[243,19,243,23],[287,1,287,6],[288,1,288,6],[289,1,289,6],[245,1,245,6],[246,1,246,6],[247,1,247,6],[248,1,248,6],[249,1,249,6],[250,1,250,6],[251,1,251,6],[252,1,252,6],[253,1,253,6],[254,1,254,6],[255,1,255,6],[256,1,256,6],[257,1,257,6],[258,1,258,6],[259,1,259,6],[260,1,260,6],[261,1,261,6],[262,1,262,6],[263,1,263,6],[264,1,264,6],[265,1,265,6],[278,1,278,6],[279,1,279,6],[280,1,280,6],[281,1,281,6],[282,1,282,6],[283,1,283,6],[284,1,284,6],[285,1,285,6],[286,1,286,6],[293,1,293,6],[294,1,294,6],[295,1,295,6],[296,1,296,6],[296,19,296,23],[297,19,297,23],[298,19,298,23],[293,7,293,12],[294,7,294,12],[295,7,295,12],[293,13,293,18],[294,13,294,18],[295,13,295,18],[293,19,293,23],[294,19,294,23],[295,19,295,23],[296,7,296,12],[297,7,297,12],[298,7,298,12],[296,13,296,18],[297,13,297,18],[297,1,297,6],[298,1,298,2],[304,19,304,23],[305,19,305,23],[306,19,306,23],[304,7,304,18],[300,1,300,23],[299,1,299,18],[356,1,356,23],[355,1,355,23],[354,1,354,23],[353,1,353,18],[352,1,352,18],[351,1,351,6],[350,1,350,23],[349,1,349,18],[348,1,348,6],[353,19,353,23],[348,7,348,18],[309,1,309,6],[87,7,87,10],[83,11,83,15],[83,16,83,20],[86,11,86,15],[86,16,86,20],[87,11,87,15],[87,16,87,20],[89,21,89,23],[347,1,347,23],[346,1,346,18],[345,1,345,2],[345,3,345,6],[344,1,344,6],[343,1,343,6],[299,19,299,23],[339,19,339,23],[307,1,307,6],[308,1,308,6],[301,7,301,18],[302,7,302,18],[303,7,303,18],[301,19,301,23],[302,19,302,23],[303,19,303,23],[92,21,92,23],[84,7,84,23],[85,7,85,23],[91,11,91,15],[71,21,71,23],[72,21,72,23],[73,21,73,23],[74,21,74,23],[75,21,75,23],[76,21,76,23],[78,21,78,23],[79,21,79,23],[78,11,78,15],[78,16,78,20],[79,11,79,15],[79,16,79,20],[73,16,73,20],[74,11,74,15],[74,16,74,20],[75,11,75,15],[75,16,75,20],[86,21,86,23],[73,11,73,15],[86,7,86,10],[73,1,73,6],[71,7,71,10],[72,7,72,10],[73,7,73,10],[92,7,92,10],[71,1,71,6],[72,1,72,6],[81,11,81,15],[82,11,82,15],[80,11,80,15],[77,7,77,23],[76,7,76,10],[74,7,74,10],[75,7,75,10],[76,11,76,15],[76,16,76,20],[91,16,91,20],[92,11,92,15],[92,16,92,20],[81,16,81,20],[82,16,82,20],[80,16,80,20],[88,21,88,23],[91,21,91,23],[94,7,94,10],[95,7,95,10],[74,1,74,6],[75,1,75,6],[71,11,71,15],[71,16,71,20],[72,11,72,15],[72,16,72,20],[67,1,67,23],[68,21,68,23],[69,21,69,23],[68,11,68,15],[68,16,68,20],[69,11,69,15],[69,16,69,20],[70,11,70,15],[70,16,70,20],[70,21,70,23],[68,7,68,10],[69,7,69,10],[70,7,70,10],[69,1,69,6],[70,1,70,6],[68,1,68,6],[66,1,66,23],[52,17,52,23],[55,1,55,16],[54,1,54,23],[53,1,53,23],[52,1,52,16],[55,17,55,23],[61,7,61,23],[62,3,62,5],[62,7,62,23],[63,3,63,5],[63,8,63,10],[63,11,63,12],[63,14,63,16],[63,19,63,20],[59,9,59,13],[59,14,59,16],[58,17,59,23],[57,1,57,23],[32,17,32,23],[36,17,36,23],[12,17,12,23],[16,17,16,23],[23,17,23,23],[20,17,20,23],[28,17,28,23],[23,1,23,16],[22,1,22,23],[33,1,33,23],[32,1,32,16],[31,1,31,23],[30,1,30,23],[29,1,29,23],[28,1,28,16],[27,1,27,23],[26,1,26,23],[24,1,24,23],[25,1,25,23],[34,1,34,23],[35,1,35,23],[97,7,97,10],[97,11,97,20],[98,7,98,10],[98,11,98,20],[99,7,99,10],[99,11,99,20],[99,1,99,6],[76,1,76,6],[78,7,78,10],[79,7,79,10],[77,1,77,6],[80,7,80,10],[78,1,78,6],[79,1,79,6],[80,1,80,6],[93,7,93,10],[91,7,91,10],[81,1,81,6],[82,1,82,6],[83,1,83,6],[95,1,95,6],[94,1,94,6],[86,1,86,6],[93,11,93,15],[100,21,100,23],[101,21,101,23],[102,21,102,23],[104,7,104,10],[104,11,104,20],[104,21,104,23],[104,1,104,6],[100,1,100,6],[106,7,106,10],[106,11,106,20],[106,21,106,23],[100,7,100,10],[100,11,100,20],[101,7,101,10],[102,7,102,10],[101,11,101,20],[102,11,102,20],[107,21,107,23],[108,21,108,23],[109,21,109,23],[110,7,110,10],[111,7,111,10],[112,7,112,10],[110,11,110,20],[111,11,111,20],[112,11,112,20],[110,21,110,23],[111,21,111,23],[112,21,112,23],[107,7,107,10],[108,7,108,10],[109,7,109,10],[107,11,107,20],[108,11,108,20],[109,11,109,20],[113,21,113,23],[114,21,114,23],[115,21,115,23],[116,7,116,10],[116,11,116,20],[117,7,117,10],[118,7,118,10],[117,11,117,20],[118,11,118,20],[116,21,116,23],[117,21,117,23],[118,21,118,23],[113,7,113,10],[114,7,114,10],[115,7,115,10],[113,11,113,20],[114,11,114,20],[115,11,115,20],[119,7,119,10],[119,11,119,20],[121,7,121,10],[121,11,121,20],[119,21,119,23],[120,7,120,23],[121,21,121,23],[120,1,120,6],[132,21,132,23],[131,1,131,20],[130,1,130,23],[129,1,129,23],[128,1,128,23],[127,1,127,6],[126,1,126,23],[125,1,125,23],[124,1,124,23],[123,1,123,20],[127,7,127,11],[127,12,127,20],[122,7,122,10],[122,11,122,20],[122,21,122,23],[123,21,123,23],[127,21,127,23],[131,21,131,23],[139,1,139,23],[148,1,148,9],[149,1,149,9],[154,2,154,23],[155,2,155,23],[156,2,156,23],[157,2,157,23],[137,1,137,23],[136,1,136,23],[135,1,135,23],[134,1,134,20],[133,1,133,23],[132,1,132,20],[142,1,142,23],[141,1,141,23],[140,1,140,23],[134,21,134,23],[158,2,158,23],[159,2,159,23],[147,1,147,23],[151,10,151,14],[148,15,148,23],[149,15,149,23],[145,1,145,23],[144,1,144,23],[143,1,143,9],[146,1,146,9],[143,10,143,14],[146,10,146,14],[148,10,148,14],[149,10,149,14],[143,15,143,23],[146,15,146,23],[162,2,162,23],[163,2,163,23],[168,1,168,2],[167,1,167,2],[175,15,175,23],[176,15,176,23],[177,15,177,23],[175,10,175,14],[175,1,175,9],[174,1,174,23],[173,1,173,23],[171,1,171,2],[170,1,170,2],[169,1,169,2],[166,1,166,2],[165,1,165,2],[176,10,176,14],[177,10,177,14],[176,1,176,9],[177,1,177,9],[166,6,166,14],[165,3,165,5],[166,3,166,5],[167,6,167,14],[178,15,178,23],[179,15,179,23],[182,2,182,23],[188,15,188,23],[189,15,189,23],[190,15,190,23],[187,1,187,23],[191,15,191,23],[192,15,192,23],[189,10,189,14],[190,10,190,14],[191,10,191,14],[192,10,192,14],[189,1,189,9],[190,1,190,9],[191,1,191,9],[192,1,192,9],[186,1,186,14],[188,1,188,9],[180,1,180,23],[181,2,181,23],[183,2,183,23],[178,10,178,14],[179,10,179,14],[218,15,218,23],[219,15,219,23],[220,15,220,23],[193,15,193,23],[194,15,194,23],[195,15,195,23],[196,1,196,9],[206,10,206,14],[202,15,202,23],[206,15,206,23],[207,10,207,14],[207,1,207,9],[196,10,196,14],[207,15,207,23],[193,10,193,14],[194,10,194,14],[195,10,195,14],[193,1,193,9],[194,1,194,9],[195,1,195,9],[196,15,196,23],[218,1,218,9],[217,1,217,23],[216,1,216,14],[244,19,244,23],[239,7,239,12],[239,13,239,18],[241,7,241,12],[241,13,241,18],[239,19,239,23],[241,19,241,23],[242,7,242,12],[242,13,242,18],[243,7,243,12],[243,13,243,18],[244,7,244,12],[244,13,244,18],[240,1,240,23],[239,1,239,6],[241,1,241,6],[242,1,242,6],[243,1,243,6],[244,1,244,6],[248,19,248,23],[249,19,249,23],[250,19,250,23],[245,7,245,12],[245,13,245,18],[246,7,246,12],[246,13,246,18],[247,7,247,12],[247,13,247,18],[245,19,245,23],[246,19,246,23],[247,19,247,23],[248,7,248,12],[248,13,248,18],[249,7,249,12],[249,13,249,18],[250,7,250,12],[250,13,250,18],[254,19,254,23],[255,19,255,23],[256,19,256,23],[251,7,251,12],[251,13,251,18],[252,7,252,12],[252,13,252,18],[253,7,253,12],[253,13,253,18],[251,19,251,23],[252,19,252,23],[253,19,253,23],[254,7,254,12],[254,13,254,18],[255,7,255,12],[255,13,255,18],[256,7,256,12],[256,13,256,18],[260,19,260,23],[261,19,261,23],[262,19,262,23],[257,7,257,12],[257,13,257,18],[258,7,258,12],[258,13,258,18],[259,7,259,12],[259,13,259,18],[257,19,257,23],[258,19,258,23],[259,19,259,23],[260,7,260,12],[260,13,260,18],[261,7,261,12],[261,13,261,18],[262,7,262,12],[262,13,262,18],[266,19,266,23],[267,19,267,23],[268,19,268,23],[263,7,263,12],[263,13,263,18],[264,7,264,12],[264,13,264,18],[265,7,265,12],[265,13,265,18],[263,19,263,23],[264,19,264,23],[265,19,265,23],[266,7,266,12],[266,13,266,18],[267,7,267,12],[267,13,267,18],[268,7,268,12],[268,13,268,18],[269,7,269,12],[269,13,269,18],[270,7,270,12],[270,13,270,18],[271,7,271,12],[271,13,271,18],[269,19,269,23],[270,19,270,23],[271,19,271,23],[273,1,273,6],[274,1,274,6],[272,1,272,23],[271,1,271,2],[271,3,271,6],[275,19,275,23],[276,19,276,23],[277,19,277,23],[273,7,273,12],[273,13,273,18],[274,7,274,12],[274,13,274,18],[275,7,275,12],[275,13,275,18],[276,7,276,12],[276,13,276,18],[277,7,277,12],[277,13,277,18],[275,1,275,6],[276,1,276,6],[277,1,277,6],[273,19,273,23],[274,19,274,23],[281,19,281,23],[282,19,282,23],[283,19,283,23],[278,7,278,12],[278,13,278,18],[279,7,279,12],[279,13,279,18],[280,7,280,12],[280,13,280,18],[278,19,278,23],[279,19,279,23],[280,19,280,23],[281,7,281,12],[281,13,281,18],[282,7,282,12],[282,13,282,18],[283,7,283,12],[283,13,283,18],[287,19,287,23],[288,19,288,23],[289,19,289,23],[284,7,284,12],[284,13,284,18],[285,7,285,12],[285,13,285,18],[286,7,286,12],[286,13,286,18],[284,19,284,23],[285,19,285,23],[286,19,286,23],[287,7,287,12],[287,13,287,18],[288,7,288,12],[288,13,288,18],[289,7,289,12],[289,13,289,18],[290,7,290,12],[290,13,290,18],[292,7,292,12],[290,19,290,23],[292,13,292,18],[292,19,292,23],[291,1,291,23],[290,1,290,2],[290,3,290,6],[292,1,292,6],[298,3,298,6],[301,1,301,6],[302,1,302,6],[303,1,303,6],[304,1,304,6],[305,1,305,6],[306,1,306,6],[298,13,298,18],[307,7,307,18],[305,7,305,18],[306,7,306,18],[308,7,308,18],[309,7,309,18],[307,19,307,23],[308,19,308,23],[309,19,309,23],[310,7,310,18],[311,7,311,18],[312,7,312,18],[310,19,310,23],[311,19,311,23],[312,19,312,23],[310,1,310,6],[311,1,311,6],[312,1,312,6],[313,7,313,18],[314,7,314,18],[315,7,315,18],[313,19,313,23],[314,19,314,23],[315,19,315,23],[313,1,313,6],[314,1,314,6],[315,1,315,6],[316,7,316,18],[317,7,317,18],[318,7,318,18],[316,19,316,23],[317,19,317,23],[318,19,318,23],[316,1,316,6],[317,1,317,6],[318,1,318,6],[319,7,319,18],[320,7,320,18],[321,7,321,18],[319,19,319,23],[320,19,320,23],[321,19,321,23],[320,1,320,6],[321,1,321,6],[319,1,319,6],[322,7,322,18],[323,7,323,18],[324,7,324,18],[322,19,322,23],[323,19,323,23],[324,19,324,23],[322,1,322,6],[323,1,323,6],[324,1,324,6],[325,7,325,18],[326,7,326,18],[327,7,327,18],[325,19,325,23],[326,19,326,23],[327,19,327,23],[326,1,326,6],[327,1,327,6],[325,1,325,6],[333,19,333,23],[331,1,331,6],[332,1,332,6],[333,1,333,6],[328,19,328,23],[329,19,329,23],[330,19,330,23],[328,1,328,6],[329,1,329,6],[330,1,330,6],[345,7,345,18],[345,19,345,23],[348,19,348,23],[351,7,351,18],[351,19,351,23],[346,19,346,23],[349,19,349,23],[352,19,352,23],[218,10,218,14],[342,7,342,18],[343,7,343,18],[344,7,344,18],[342,19,342,23],[343,19,343,23],[344,19,344,23],[334,7,334,18],[335,7,335,18],[336,7,336,18],[334,19,334,23],[335,19,335,23],[336,19,336,23],[328,7,328,18],[329,7,329,18],[330,7,330,18],[215,1,215,9],[221,15,221,23],[224,15,224,23],[342,1,342,6],[337,7,337,18],[338,7,338,18],[337,19,337,23],[338,19,338,23],[341,7,341,18],[341,19,341,23],[341,1,341,6],[340,1,340,23],[339,1,339,18],[338,1,338,2],[338,3,338,6],[337,1,337,6],[336,1,336,6],[335,1,335,6],[334,1,334,6],[331,7,331,18],[332,7,332,18],[333,7,333,18],[331,19,331,23],[332,19,332,23],[94,16,94,20],[95,11,95,15],[95,16,95,20],[184,2,184,23],[185,2,185,23],[1,1,1,23],[216,15,216,23],[222,15,222,23],[228,15,228,23],[186,15,186,23],[203,15,203,23],[209,15,209,23],[226,10,226,14],[227,10,227,14],[225,15,225,23],[226,15,226,23],[227,15,227,23],[221,10,221,14],[224,10,224,14],[215,10,215,14],[214,15,214,23],[215,15,215,23],[213,1,213,9],[214,1,214,9]]}
[]
[]
[null,"FACULTY ANNUAL APPRAISAL 2022-2023\nCONTRIBUTIONS TO UTSA/ACOB/DEPARTMENT MISSION AND GOALS"]
[null,"\nThe attached appraisal system is directly linked to the mission and goals of the College of Business and UTSA. Specific goals are for:\n1. UTSA and ACOB students to be successful (see UTSA Graduation Rate Improvement Plan, THECB expectations for numbers of UG, GRAD, PHD degrees awarded),\n2. The ACOB to be efficient,\n3. The ACOB to maintain accreditation through high quality faculty and programs,\n4. The University to be recognized as Carnegie R1, and maintain Carnegie R1 status.\n\nExamples of ways in which faculty teaching, research and service activities can contribute to these goals are listed below.\n\n1.    Student Success – contributes to student success (retention, graduation, placement) by\n     Providing class access by offering more seats (e.g., larger classes);\n     Providing greater scheduling options for students (e.g., day/night classes, 3-5 day schedule, Main/DT campuses, number of preps, larger classes, etc.);\n     Supporting weekend programs/offerings (e.g., EMBA program);\n     Enhancing UG research skills for graduate school (e.g., chairing Honors Thesis);\n     Enhancing leadership skills for jobs in business (e.g., faculty sponsor of student organization);\n     Enhancing skills for academia (co-authoring papers with students);\n     Classroom instruction (e.g., teaching portfolio);\n     Mentoring (e.g., advisor of record).\n\n2.    Efficiency – contributes to lower instructional costs by\n     Reducing demand for additional (limited) classroom space (e.g., larger classes, hybrid or online class, early morning class, etc.);\n     Reducing the number of part-time, adjunct faculty (e.g., larger classes,  teaching at different levels,  day/night classes, 3-5 day schedule, Main/DT campuses, number of preps, etc.);\n\n3.    AACSB – contributes to ACOB accreditation efforts by\n     Increasing %SCH taught by Scholarly Academic Faculty (larger classes, teaching at different levels);\n     Increasing %SCH taught by Practice Academic Faculty (larger classes, teaching at different levels);\n     Assisting in Assurance of Learning Activities (e.g., chairing/participating in department AOL efforts);\n     Establishing Research Impact (e.g., journal quality);\n     Establishing faculty currency and/or continuing professional development (e.g. publications, other ICs);\n     Participation in Strategic Planning efforts (e.g., chair/member of key committees).\n\n4.    R1 – contributes to ACOB/UTSA “R1” quest by\n     Enhancing academic reputation through high quality intellectual contributions (e.g., journal quality, grants, best papers, etc.);\n     Supporting other departmental faculty research efforts through teaching (e.g., teach large classes, number of preps, etc.);\n     Supporting masters/doctoral education (graduate instruction);\n     Participating in programs for Honors students (e.g., teaching Honors classes, chairing thesis);\n     Serving/chairing committees (e.g., dissertation committees);\n     Showcasing ACOB quality to external community (e.g., officer in professional organization, executive education, etc.)."]
[]
[]
[null,null,null,null,null,null,null,"FACULTY (2-2 WL) ANNUAL \nAPPRAISAL SUMMATION 9/1/22 – 8/31/23"]
[]
[null,"Name:",null,null,null,null,"abc123:",null,null,null,"Title:"]
[null,"Department:",null,null,null,null,"Weights:","T","0%",null,null,null,null,"R","0%",null,null,"S",null,"0%",null,"Admin","0%"]
[null,"TEACHING"]
[null,"I. Faculty Evaluation of Her/His Teaching Activities (0-100 points)"]
[null,"ACOB Teaching Rubric Total Points 9/1/22 – 8/31/23",null,null,null,null,null,null,null,null,null,null,null,null,null,null,null,{"$f":"V135","v":0}]
[null,"Faculty Comments/Statements (From ACOB Teaching Rubric 9/1/22 – 8/31/23):"]
[]
[null,"II. Departmental Faculty Committee Evaluation of Teaching Activities (0-100 points)"]
[null,"Committee Recommended Points"]
[null,"Explain (Required only if Committee Recommendation differs from Rubric, or the faculty member is untenured.):"]
[]
[null,"III. Department Chair Evaluation of Teaching Activities (0-100 points)"]
[null,"Chair Recommended Points"]
[null,"Explain (Required only if Chair Recommendation differs from Committee, or the faculty member is untenured.):"]
[]
[null,"IV. Dean Review of Teaching Activities (0-100 points)"]
[null,"Explain (Required only if Dean differs from Department Chair):"]
[]
[null,"RESEARCH"]
[null,"I. Faculty Evaluation of Her/His Research Activities (0-100 points)"]
[null,"ACOB Research Rubric Total Points 9/1/22 – 8/31/23",null,null,null,null,null,null,null,null,null,null,null,null,null,null,null,{"$f":"P231","v":0}]
[null,"Faculty Comments/Statements (From ACOB Research Rubric 9/1/22 – 8/31/23):"]
[]
[null,"II. Departmental Faculty Committee Evaluation of Research Activities (0-100 points)"]
[null,"Committee Recommended Points"]
[null,"Explain (Required only if Committee Recommendation differs from Rubric, or the faculty member is untenured.):"]
[]
[null,"III. Department Chair Evaluation of Research Activities (0-100 points)"]
[null,"Chair Recommended Points"]
[null,"Explain (Required only if Chair Recommendation differs from Committee, or the faculty member is untenured.):"]
[]
[null,"IV. Dean Review of Research Activities (0-100 points)"]
[null,"Explain (Required only if Dean differs from Department Chair):"]
[]
[null,"SERVICE"]
[null,"I. Faculty Evaluation of Her/His Service Activities (0-100 points)"]
[null,"ACOB Service Rubric Total Points 9/1/22 – 8/31/23",null,null,null,null,null,null,null,null,null,null,null,null,null,null,null,{"$f":"T354","v":0}]
[null,"Faculty Comments/Statements (From ACOB Service Rubric 9/1/22 – 8/31/23):"]
[]
[null,"II. Departmental Faculty Committee Evaluation of Service Activities (0-100 points)"]
[null,"Committee Recommended Points"]
[null,"Explain (Required only if Committee Recommendation differs from Rubric, or the faculty member is untenured.):"]
[]
[null,"III. Department Chair Evaluation of Service Activities (0-100 points)"]
[null,"Chair Recommended Points"]
[null,"Explain (Required only if Chair Recommendation differs from Committee, or the faculty member is untenured.):"]
[]
[null,"IV. Dean Review of Service Activities (0-100 points)"]
[null,"Explain (Required only if Dean differs from Department Chair):"]
[]
[null,"OVERALL FACULTY APPRAISAL POINTS WEIGHTED",null,null,null,null,null,null,null,null,null,null,null,null,null,null,null,{"$f":"AO59","v":0},null,null,null,null,null,null,null,null,null,null,null,null,null,null,null,null,null,null,null,null,null,null,{"$f":"IF(W10<>\"0%\",R24*I10*W10+R40*O10*W10+R56*T10*W10,R24*I10+R40*O10+R56*T10)","v":0}]
[null,null,"T",{"$f":"I10","v":"0%"},"R",{"$f":"O10","v":"0%"},"S",{"$f":"T10","v":"0%"},null,"Admin",null,null,null,null,{"$f":"W10","v":"0%"}]
[]
[null,null,null,null,null,null,null,"FACULTY (2-2 WL) ANNUAL APPRAISAL 9/1/22 – 8/31/23"]
[null,"Name:",null,{"$f":"D9","v":0},null,null,"Title:",{"$f":"O9","v":0}]
[null,"Department:",null,{"$f":"D10","v":0},null,null,"Weights:","T",{"$f":"I10","v":"0%"},null,null,null,null,"R",{"$f":"O10","v":"0%"},null,null,null,"S",{"$f":"T10","v":"0%"},null,"Admin",{"$f":"W10","v":"0%"}]
[null,"TEACHING RUBRIC"]
[null,"If the overall average student evaluation on the teaching dimension falls between 3.50 and 4.00, the total number of points on the teaching dimension is capped at 89.\nIf the overall average student evaluation on the teaching dimension is below 3.50, the total number of points on the teaching dimension is capped at 74.\n                                                                                                                             See Part II Below"]
[null,"I.         Instructional Activities (0-60 points)"]
[null,"By Semester\n(Annual if Administration)"]
[null,"Levels (Select One, if Applicable)",null,null,null,null,null,"Possible Points",null,null,null,"Fall 2022 Points",null,null,null,null,"Spring 2023 Points",null,null,null,null,"Total Points"]
[null,"Lower Division Only",null,null,null,null,null,5,null,null,null,null,null,null,null,null,null,null,null,null,null,{"$f":"L70+Q70","v":0}]
[null,"Lower Division &  Upper Division",null,null,null,null,null,7,null,null,null,null,null,null,null,null,null,null,null,null,null,{"$f":"L71+Q71","v":0}]
[null,"Upper Division Only",null,null,null,null,null,7,null,null,null,null,null,null,null,null,null,null,null,null,null,0]
[null,"Undergraduate & Honors",null,null,null,null,null,7,null,null,null,null,null,null,null,null,null,null,null,null,null,0]
[null,"Undergraduate & Masters",null,null,null,null,null,7,null,null,null,null,null,null,null,null,null,null,null,null,null,0]
[null,"All Masters",null,null,null,null,null,7,null,null,null,null,null,null,null,null,null,null,null,null,null,0]
[null,"Doctoral & Other",null,null,null,null,null,10,null,null,null,null,null,null,null,null,null,null,null,null,null,0]
[null,"Course Buyout Per Grant",null,null,null,null,null,7,null,null,null,null,null,null,null,null,null,null,null,null,null,0]
[null,"Schedule (Select All That Are Applicable)"]
[null,"Teach UTSA Gateway Course (Academic Inquiry & Scholarship-AIS 1203)",null,null,null,null,null,10,null,null,null,null,null,null,null,null,null,null,null,null,null,{"$f":"L79+Q79","v":0}]
[null,"Split Classes (Classes span at least 8 hours from beginning to end)",null,null,null,null,null,10]
[null,"Class Days – 3 or 4 per week",null,null,null,null,null,15,null,null,null,null,null,null,null,null,null,null,null,null,null,0]
[null,"Class Days – 5 per week",null,null,null,null,null,20,null,null,null,null,null,null,null,null,null,null,null,null,null,0]
[null,"Teach Organized Lecture Class on Weekends",null,null,null,null,null,15,null,null,null,null,null,null,null,null,null,null,null,null,null,0]
[null,"Teach at Both (Main and Downtown) Campuses",null,null,null,null,null,10,null,null,null,null,null,null,null,null,null,null,null,null,null,0]
[null,"Total Enrollments (Select, as Applicable)"]
[null,"Undergraduate"]
[null,"0-60",null,null,null,null,null,0,null,null,null,null,null,null,null,null,null,null,null,null,null,{"$f":"L87+Q87","v":0}]
[null,"61-120",null,null,null,null,null,5,null,null,null,null,null,null,null,null,null,null,null,null,null,0]
[null,"121-250",null,null,null,null,null,10,null,null,null,null,null,null,null,null,null,null,null,null,null,0]
[null,"251+",null,null,null,null,null,15,null,null,null,null,null,null,null,null,null,null,null,null,null,0]
[null,"Graduate"]
[null,"0-20",null,null,null,null,null,0,null,null,null,null,null,null,null,null,null,null,null,null,null,{"$f":"L92+Q92","v":0}]
[null,"21-40",null,null,null,null,null,5,null,null,null,null,null,null,null,null,null,null,null,null,null,0]
[null,"41-60",null,null,null,null,null,10,null,null,null,null,null,null,null,null,null,null,null,null,null,0]
[null,"61+",null,null,null,null,null,15,null,null,null,null,null,null,null,null,null,null,null,null,null,0]
[null,"Doctoral",null,null,null,null,null,5,null,null,null,null,null,null,null,null,null,null,null,null,null,0]
[null,"Review Period (Fall 2022/Spring 2023)"]
[null,"Total Preps (Select All That Are Applicable) Fall 2022/Spring 2023",null,null,null,null,null,null,null,null,null,"Fall 2022/Spring 2023"]
[null,"New Prep",null,null,null,null,null,"10 each",null,null,null,null,null,null,null,null,null,null,null,null,null,{"$f":"IF(AP99,10,0)","v":0},null,null,null,null,null,null,null,null,null,null,null,null,null,null,null,null,null,null,null,false]
[null,"2 Preps",null,null,null,null,null,"10",null,null,null,null,null,null,null,null,null,null,null,null,null,{"$f":"IF(AP100,10,0)","v":0},null,null,null,null,null,null,null,null,null,null,null,null,null,null,null,null,null,null,null,false]
[null,"3 Preps",null,null,null,null,null,"20",null,null,null,null,null,null,null,null,null,null,null,null,null,{"$f":"IF(AP101,20,0)","v":0},null,null,null,null,null,null,null,null,null,null,null,null,null,null,null,null,null,null,null,false]
[null,"4 Preps",null,null,null,null,null,"40",null,null,null,null,null,null,null,null,null,null,null,null,null,{"$f":"IF(AP102,40,0)","v":0},null,null,null,null,null,null,null,null,null,null,null,null,null,null,null,null,null,null,null,false]
[null,"5 Preps",null,null,null,null,null,"60",null,null,null,null,null,null,null,null,null,null,null,null,null,{"$f":"IF(AP103,60,0)","v":0},null,null,null,null,null,null,null,null,null,null,null,null,null,null,null,null,null,null,null,false]
[null,"Additional Classes Fall 2022/Spring 2023 (If Applicable)"]
[null,"Each Additional Class Beyond Minimum Annual Requirements",null,null,null,null,null,"10",null,null,null,null,null,null,null,null,null,null,null,null,null,{"$f":"L105","v":0}]
[null,"Mentoring, Awards, Learning Fall 2022/Spring 2023"]
[null,"Dissertation Committee Chair (yes/no)",null,null,null,null,null,"18 each",null,null,null,null,null,null,null,null,null,null,null,null,null,{"$f":"L107","v":0}]
[null,"Dissertation Committee Co-Chair (yes/no)",null,null,null,null,null,"10 each",null,null,null,null,null,null,null,null,null,null,null,null,null,0]
[null,"Dissertation Committee Member (yes/no)",null,null,null,null,null,"7 each",null,null,null,null,null,null,null,null,null,null,null,null,null,0]
[null,"UG Honors Thesis Chair (yes/no)",null,null,null,null,null,"7 each",null,null,null,null,null,null,null,null,null,null,null,null,null,0]
[null,"UG Honors Thesis Member (yes/no)",null,null,null,null,null,"5 each"]
[null,"Master’s Thesis Chair (yes/no)",null,null,null,null,null,"7 each",null,null,null,null,null,null,null,null,null,null,null,null,null,0]
[null,"Master’s Thesis Member (yes/no)",null,null,null,null,null,"5 each",null,null,null,null,null,null,null,null,null,null,null,null,null,0]
[null,"Advisor of Record – no course release",null,null,null,null,null,"10",null,null,null,null,null,null,null,null,null,null,null,null,null,0]
[null,"Department Internship Supervisor/Coordinator",null,null,null,null,null,"5",null,null,null,null,null,null,null,null,null,null,null,null,null,0]
[null,"Independent Study (yes/no)",null,null,null,null,null,"3 each",null,null,null,null,null,null,null,null,null,null,null,null,null,0]
[null,"Honors Awarded During Current Period Only:"]
[null,"ACOB/UTSA Teaching Award",null,null,null,null,null,"10",null,null,null,null,null,null,null,null,null,null,null,null,null,{"$f":"L118","v":0}]
[null,"Regent’s Teaching Award",null,null,null,null,null,"20",null,null,null,null,null,null,null,null,null,null,null,null,null,0]
[null,"“Master Teacher” – admitted to UTSA Academy of Distinguished Teaching Scholars",null,null,null,null,null,"20",null,null,null,null,null,null,null,null,null,null,null,null,null,0]
[null,"ACOB (AACSB/SACS) and/or Department Assessment of Learning",null,null,null,null,null,""]
[null,"Participate",null,null,null,null,null,"5",null,null,null,null,null,null,null,null,null,null,null,null,null,{"$f":"L122","v":0}]
[null,"Significant Leadership",null,null,null,null,null,"10",null,null,null,null,null,null,null,null,null,null,null,null,null,0]
[null,"Total Points – I. Instructional Activities Fall 2022/Spring 2023 (0-60 points)",null,null,null,null,null,null,null,null,null,null,null,null,null,null,null,null,null,null,null,{"$f":"IF(SUM(V70:X77,V79:X84,V87:X90,V92:X96,V99:X103,V105,V107:X116,V118:X120,V122:X123)>60,60,SUM(V70:X77,V79:X84,V87:X90,V92:X96,V99:X103,V105,V107:X116,V118:X120,V122:X123))","v":0}]
[null,"Faculty Comments/Statement – Instructional Activities [Required if I. Total Points < 30 and/or the faculty member is untenured]:"]
[]
[null,"II. Student Assessment of Instruction (SAI) Fall 2022/Spring 2023 (0-40 points)"]
[null,"Course Instructor Evaluation",null,null,null,null,null,"0-40 pts."]
[null,"SAI = 8*CES ≤ 40 points, where CES = Overall Average of UTSA Course Evaluation Surveys\nCES = {N1 * (CES1) + N2 *(CES2) + … + Ni *(CESi)}/(N1+ N2….+Ni) \nwhere N1 is # of responders in Class 1, CES1 = simple average of all items 1-7 for Course 1 in UTSA Course Evaluation Survey, etc."]
[null,"Faculty Comments:"]
[]
[null,"Overall Average Student Evaluation",null,null,null,null,null,null,null,null,null,null,null,null,null,null,null,null,null,null,null,{"$f":"AO132","v":0}]
[null,"Total Points – II. Student Assessment of Instruction (0-40 points)",null,null,null,null,null,null,null,null,null,null,null,null,null,null,null,null,null,null,null,{"$f":"AO133","v":0}]
[null,"III. = I + II Fall 2022/Spring 2023 (0-100 points)"]
[null,"TOTAL POINTS –TEACHING (0-100 POINTS)*\n*If the overall average student evaluation on the teaching dimension falls between 3.50 and 4.00, the total number of points on the teaching dimension is capped at 89.\nIf the overall average student evaluation on the teaching dimension is below 3.50, the total number of points on the teaching dimension is capped at 74.",null,null,null,null,null,null,null,null,null,null,null,null,null,null,null,null,null,null,null,{"$f":"IF(AO132> 4, SUM(V124, V133),IF(AO132>=3.5,IF(SUM(V124, V133)>89,89,SUM(V124, V133)),IF(SUM(V124, V133)>74,74,SUM(V124, V133))))","v":0}]
[null,"Faculty Comments/Statement Regarding Overall Teaching Appraisal"]
[null,"(Possible reasons for variance with the ACOB rubric are that a faculty member is: untenured, on FMLA, on approved leave, has an administrative or approved quasi-administrative assignment, or has other considerations not reflected in the ACOB rubric above.)"]
[]
[]
[null,"RESEARCH RUBRIC"]
[null,"2-2 Workload: Maximum Total Research Points without Elite PRJ or Total Grant in Excess of $750,000 is 89;\nMaximum Total Points without AJG Level 3 PRJ or Total Grant in Excess of $200,000 is 74"]
[null,"I.   Maximum Total of 100 Points from Peer Reviewed Journal Articles"]
[null,"A. Peer Reviewed Journal Articles Accepted 9/1/20 – 8/31/23 (0-100 Points)"]
[null,null,null,null,null,null,null,null,null,null,"Points Per\nPRJ and/or grant",null,null,null,null,"Total Points"]
[null,"2-2 Workload Track"]
[null,"a. “Elite Journals”"]
[null,"Elite Peer Reviewed Journals (see Elite Journal List)",null,null,null,null,null,null,null,null,"80"]
[null,"b. AJG  Ranked Journals"]
[null,"AJG Level 4 Journal",null,null,null,null,null,null,null,null,"50"]
[null,"AJG Level 3 Journal",null,null,null,null,null,null,null,null,"30"]
[null,"AJG Level 2 Journal",null,null,null,null,null,null,null,null,"20"]
[null,"AJG Level 1 Journal and/or $ 0 up to 100,000",null,null,null,null,null,null,null,null,"10"]
[null,"Total Points",null,null,null,null,null,null,null,null,null,null,null,null,null,{"$f":"SUM(P147,P149:X152)","v":0}]
[null,"A. PRJ Articles Accepted 9/1/20 – 8/31/23 [Co-Author(s), Title, Journal, Journal Rank, Date Accepted]: "]
[null,1]
[null,2]
[null,3]
[null,4]
[null,5]
[null,6]
[null,7]
[null,8]
[null,9]
[null,10]
[null,"3. Grant Activity Equivalents [Grants Awarded to PI/Co-PI 9/1/20 – 8/31/23]"]
[null,"Type of Grant",null,"Grant Source",null,null,"Cumulative Grant Amount (Total $)",null,null,null,null,null,null,null,null,"Publication Equivalency"]
[null,"Research",null,"Federal/State/Industry",null,null,"$ 0 up to 100,000",null,null,null,null,null,null,null,null,"AJG Level 1"]
[null,null,null,null,null,null,"Over 100,000 up to 200,000",null,null,null,null,null,null,null,null,"AJG Level 2"]
[null,null,null,null,null,null,"Over 200,000 up to 500,000",null,null,null,null,null,null,null,null,"AJG Level 3"]
[null,null,null,null,null,null,"Over 500,00 up to 750,000",null,null,null,null,null,null,null,null,"AJG Level 4"]
[null,null,null,null,null,null,"Over 750,000",null,null,null,null,null,null,null,null,"Elite Journal"]
[null,null,null,null,null,null,"Select List",null,null,null,null,null,null,null,null,{"$f":"AO172","v":0},null,null,null,null,null,null,null,null,null,null,null,null,null,null,null,null,null,null,null,null,null,null,null,null,{"$f":"IF(G172=\"$ 0 up to 100,000\",10,IF(G172=\"Over 100,000 up to 200,000\",20,IF(G172=\"Over 200,000 up to 500,000\",30,IF(G172=\"Over 500,00 up to 750,000\",50,IF(G172=\"Over 750,000\",80,0)))))","v":0}]
[null,"Total Points (Maximum of 100 points)",null,null,null,null,null,null,null,null,null,null,null,null,null,{"$f":"IF((P153+P172)>100,100,P153+P172)","v":0}]
[null,"II. Maximum Total of 40 Points from Intellectual Contributions B.-G."]
[null,"B. PRJs Accepted with Current/Former UTSA Student(s) (Maximum of 15 points)  "]
[null,"Rankings of Journals",null,null,null,null,null,null,null,null,"Points Per PRJ",null,null,null,null,"Total Points"]
[null,"AJG Level 4 Journal",null,null,null,null,null,null,null,null,15]
[null,"AJG Level 3 Journal",null,null,null,null,null,null,null,null,10]
[null,"AJG Level 2 Journal",null,null,null,null,null,null,null,null,5]
[null,"AJG Level 1 Journal",null,null,null,null,null,null,null,null,2]
[null,"B. PRJ Articles Accepted with Current/Former UTSA Students 9/1/20 – 8/31/23 [Co-Author(s), Title, Journal, Date Accepted]:"]
[null,1]
[null,2]
[null,3]
[null,4]
[null,5]
[null,"Total Points",null,null,null,null,null,null,null,null,null,null,null,null,null,{"$f":"IF(SUM(P177:X180)>15,15,SUM(P177:X180))","v":0}]
[null,"C. Other Publications/Intellectual Contributions 9/1/20 – 8/31/23 (Maximum of 40 points)"]
[null,"Books, and Other Intellectual Contributions",null,null,null,null,null,null,null,null,"Points Per\nPublication",null,null,null,null,"Total Points"]
[null,"Scholarly Book – Published or Significantly Revised 9/1/20 – 8/31/23",null,null,null,null,null,null,null,null,"0-30"]
[null,"Chapter in Scholarly Book – Published 9/1/22 – 8/31/23",null,null,null,null,null,null,null,null,"0-10"]
[null,"Textbook – Published or Significantly Revised 9/1/20 – 8/31/23",null,null,null,null,null,null,null,null,"0-30"]
[null,"Book Reviews – Published 9/1/22 – 8/31/23",null,null,null,null,null,null,null,null,10]
[null,"Mentoring undergraduate student(s) in research that is published/presented/poster",null,null,null,null,null,null,null,null,10]
[null,"Pedagogy/Instructor materials cases – Published 9/1/22 – 8/31/23",null,null,null,null,null,null,null,null,10]
[null,"Instructional software development – Published 9/1/22 – 8/31/23",null,null,null,null,null,null,null,null,10]
[null,"C. Other PRJ Articles Accepted 9/1/20 – 8/31/23 [Co-Author(s), Title, Journal, Date Accepted]:",null,null,null,null,null,null,null,null,10]
[null,1]
[null,2]
[null,3]
[null,4]
[null,5]
[null,"Published Business Case",null,null,null,null,null,null,null,null,5]
[null,"Total Points",null,null,null,null,null,null,null,null,null,null,null,null,null,{"$f":"IF(SUM(P190:X203)>40,40,SUM(P190:X203))","v":0}]
[null,"D. Works in Progress 9/1/22 – 8/31/23 (Maximum of 15 points)"]
[null,"PRJ Articles in Progress"]
[null,null,null,null,null,null,null,null,null,null,"Points Per Distinct\nPaper",null,null,null,null,"Total Points"]
[null,"Paper Submission ",null,null,null,null,null,null,null,null,"5"]
[null,"Research Monograph",null,null,null,null,null,null,null,null,"5"]
[null,"Total Points",null,null,null,null,null,null,null,null,null,null,null,null,null,{"$f":"IF(SUM(P208:X209)>15,15,SUM(P208:X209))","v":0}]
[null,"E. Presentations 9/1/22 – 8/31/23 (Maximum of 20 points)"]
[null,null,null,null,null,null,null,null,null,null,"Points Per\nDistinct Paper",null,null,null,null,"Total Points"]
[null,"Presentation at High Quality Academic Conference",null,null,null,null,null,null,null,null,"15"]
[null,"Presentation at National Academic Conference",null,null,null,null,null,null,null,null,"10"]
[null," ",null,null,null,null,null,null,null,null,"10"]
[null,"Presentation at Regional/Local Conference",null,null,null,null,null,null,null,null,"5"]
[null,"Total Points",null,null,null,null,null,null,null,null,null,null,null,null,null,{"$f":"IF(SUM(P213:X216)>20,20,SUM(P213:X216))","v":0}]
[null,"F. Grants 9/1/22 – 8/31/23 (Maximum of 40 points)"]
[null,null,null,null,null,null,null,null,null,null,"Points",null,null,null,null,"Total Points"]
[null,"Research Grant Submission  (points PER grant submission)",null,null,null,null,null,null,null,null,"15"]
[null,"Participation by non PI/Co-PI on grant submissions and grants awarded",null,null,null,null,null,null,null,null,"10 each"]
[null,"Patents",null,null,null,null,null,null,null,null,"10"]
[null,"Total Points",null,null,null,null,null,null,null,null,null,null,null,null,null,{"$f":"IF(SUM(P220:X222)>40,40,SUM(P220:X222))","v":0}]
[null,"G. Honors 9/1/22 – 8/31/23 (Maximum of 20 points)"]
[null,"Honors During Current Year Only:",null,null,null,null,null,null,null,null,"Points",null,null,null,null,"Total Points"]
[null,"ACOB/UTSA Research Award",null,null,null,null,null,null,null,null,"10"]
[null,"Best Paper at a Conference or Journal: Elite (E), High Quality (HQ), Other (O)",null,null,null,null,null,null,null,null,"E=20 HQ=15\nO=10"]
[null,"Admitted to UTSA Academy of Distinguished Researchers",null,null,null,null,null,null,null,null,"20"]
[null,"Total Points",null,null,null,null,null,null,null,null,null,null,null,null,null,{"$f":"IF(SUM(P226:X228)>20,20,SUM(P226:X228))","v":0}]
[null,"TOTAL Points from B. to G.",null,null,null,null,null,null,null,null,null,null,null,null,null,{"$f":"IF(SUM(P187,P204,P210,P217,P223,P229)>40,40,SUM(P187,P204,P210,P217,P223,P229))","v":0}]
[null,"III. = I. + II. = TOTAL POINTS RESEARCH (0-100 points)**",null,null,null,null,null,null,null,null,null,null,null,null,null,{"$f":"AP231","v":0},null,null,null,null,null,null,null,null,null,null,null,null,null,null,null,null,null,null,null,null,null,null,null,null,null,{"$f":"IF(OR(P147>0,G172=\"Over 750,000\"),IF(SUM(P173,P230)>100,100,SUM(P173,P230)),IF(OR(P149>0,P150>0,G172=\"Over 500,00 up to 750,000\",G172=\"Over 200,000 up to 500,000\"),IF(SUM(P173,P230)>89,89,SUM(P173,P230)),IF(SUM(P173,P230)>74,74,SUM(P173,P230))))","v":0}]
[null,"**NOTE: Maximum total points -- 2-2 Workload:\nMaximum Total Research Points without Elite PRJ or Total Grant in Excess of $750,000 is 89;\nMaximum Total Research Points without AJG Level 3 PRJ or Total Grant in Excess of $200,000 is 74."]
[null,"Faculty Comments/Statement Regarding Research Appraisal"]
[null,"(Possible reasons for variance with the ACOB rubric are that a faculty member is: untenured, on FMLA, on approved leave, has an administrative or approved quasi-administrative assignment, or has other considerations not reflected in the ACOB rubric above.)"]
[]
[]
[null,"SERVICE ACTIVITIES RUBRIC (0-100 points)"]
[null,"A. Committee Service 9/1/22 – 8/31/23 (Maximum of 70 points)"]
[null,null,null,null,null,null,null,"Points"]
[null,null,null,null,null,null,null,"Member",null,null,null,null,null,"Chair/Officer",null,null,null,null,null,"Total"]
[null,"University Level"]
[null,"Athletics Committee",null,null,null,null,null,5,null,null,null,null,null,15]
[null,"Committee on Committees",null,null,null,null,null,5,null,null,null,null,null,15]
[null,"Curriculum Committee",null,null,null,null,null,5,null,null,null,null,null,15]
[null,"Core Curriculum Assessment",null,null,null,null,null,5,null,null,null,null,null,15]
[null,"Extended Education",null,null,null,null,null,5,null,null,null,null,null,15]
[null,"Graduation Ceremonies",null,null,null,null,null,5,null,null,null,null,null,15]
[null,"HUB Committee",null,null,null,null,null,5,null,null,null,null,null,15]
[null,"Quantitative Literacy Committee",null,null,null,null,null,5,null,null,null,null,null,15]
[null,"University Libraries",null,null,null,null,null,5,null,null,null,null,null,15]
[null,"University Scholarship",null,null,null,null,null,5,null,null,null,null,null,15]
[null,"Faculty Senate",null,null,null,null,null,10,null,null,null,null,null,20]
[null,"Faculty Senate Officers & Executive Committee",null,null,null,null,null,5,null,null,null,null,null,15]
[null,"Faculty Senate Academic Freedom & Tenure Committee",null,null,null,null,null,5,null,null,null,null,null,15]
[null,"Faculty Senate Academic Policy & Requirements Committee",null,null,null,null,null,5,null,null,null,null,null,15]
[null,"Faculty Senate Committee on Handbook of Operating Procedures",null,null,null,null,null,5,null,null,null,null,null,15]
[null,"Faculty Senate Evaluations, Merit, Rewards, & Workload Committee",null,null,null,null,null,5,null,null,null,null,null,15]
[null,"Faculty Senate Nominating, Elections, & Procedures Committee",null,null,null,null,null,5,null,null,null,null,null,15]
[null,"Faculty Senate Research Committee",null,null,null,null,null,5,null,null,null,null,null,15]
[null,"University Curriculum Committee",null,null,null,null,null,5,null,null,null,null,null,15]
[null,"Graduate Council",null,null,null,null,null,10,null,null,null,null,null,20]
[null,"Graduate Council Administrative & Agenda Committee",null,null,null,null,null,5,null,null,null,null,null,15]
[null,"Graduate Council Nominating Committee",null,null,null,null,null,5,null,null,null,null,null,15]
[null,"Graduate Council Academic & Policy Requirements Committee",null,null,null,null,null,5,null,null,null,null,null,15]
[null,"Graduate Council Graduate Program Evaluation Committee",null,null,null,null,null,5,null,null,null,null,null,15]
[null,"Graduate Council Graduate Programs & Courses Committee",null,null,null,null,null,5,null,null,null,null,null,15]
[null,"Graduate Council Membership Committee",null,null,null,null,null,5,null,null,null,null,null,15]
[null,"Grievance Committee",null,null,null,null,null,10,null,null,null,null,null,20]
[null,"UFRAC",null,null,null,null,null,15,null,null,null,null,null,20]
[null,"GRIP or Assurance of Learning Committee",null,null,null,null,null,10,null,null,null,null,null,15]
[null,"Ad Hoc Committees:",null,null,null,null,null,5,null,null,null,null,null,15]
[null,"Other (Specify):",null,null,null,null,null,5,null,null,null,null,null,15]
[null,"ACOB Level"]
[null,"Faculty Forum/Graduate Faculty Forum Chair",null,null,null,null,null,null,null,null,null,null,null,20]
[null,"Faculty Forum/Graduate Faculty Forum - Elected Officer",null,null,null,null,null,null,null,null,null,null,null,15]
[null,"Faculty Forum/Graduate Faculty Forum Executive Committee",null,null,null,null,null,5,null,null,null,null,null,15]
[null,"Undergraduate Programs Committee",null,null,null,null,null,10,null,null,null,null,null,15]
[null,"MBA Programs Committee",null,null,null,null,null,10,null,null,null,null,null,15]
[null,"Ph.D.  in Business Administration Programs Committee",null,null,null,null,null,10,null,null,null,null,null,15]
[null,"Executive Programs Committee",null,null,null,null,null,10,null,null,null,null,null,15]
[null,"CFRAC",null,null,null,null,null,15,null,null,null,null,null,25]
[null,"College Scholarship Committee",null,null,null,null,null,10,null,null,null,null,null,20]
[null,"Dean’s Ad Hoc Committee ",null,null,null,null,null,10,null,null,null,null,null,20]
[null,"Other Ad Hoc Committees:"]
[null,"Research Grant Fund Committee – INTRA, etc.",null,null,null,null,null,5,null,null,null,null,null,15]
[null,"Research Advisory Council",null,null,null,null,null,5,null,null,null,null,null,15]
[null,"Technology Committee",null,null,null,null,null,5,null,null,null,null,null,15]
[null,"UG Curriculum Committee for the Provost Office Technology\nInitiative",null,null,null,null,null,5,null,null,null,null,null,15]
[null,"Administration of Major, Externally Funded Scholarship/Fellowship\nProgram: Co-PI (10 pts.) and Lead PI (20 pts.)",null,null,null,null,null,10,null,null,null,null,null,20]
[null,"Administration of Minor, Externally Funded Scholarship/Fellowship\nProgram: Co-PI (5 pts.) and Lead PI (10 pts.)",null,null,null,null,null,5,null,null,null,null,null,10]
[null,"Other (Specify):",null,null,null,null,null,5,null,null,null,null,null,15]
[null,"Department Level"]
[null,"DFRAC (only if case(s) are reviewed)",null,null,null,null,null,10,null,null,null,null,null,25]
[null,"Undergraduate  Programs Committee",null,null,null,null,null,10,null,null,null,null,null,20]
[null,"Master’s Admission Committee",null,null,null,null,null,10,null,null,null,null,null,20]
[null,"Ph.D. Committee",null,null,null,null,null,10,null,null,null,null,null,20]
[null,"Search Committee",null,null,null,null,null,10,null,null,null,null,null,30]
[null,"Mentor for Untenured Faculty Member",null,null,null,null,null,15]
[null,"Other (Specify):",null,null,null,null,null,5,null,null,null,null,null,10]
[null,"Total Points",null,null,null,null,null,null,null,null,null,null,null,null,null,null,null,null,null,{"$f":"IF(SUM(T242:X272,T274:X291,T293:X299)>70,70,SUM(T242:X272,T274:X291,T293:X299))","v":0}]
[null,"B. Professional Service 9/1/22 – 8/31/23 (Maximum of 50 points)"]
[null,"Elected officer of national academic association",null,null,null,null,null,20]
[null,"Elected officer of regional/local academic association",null,null,null,null,null,15]
[null,"Committee/task force of professional/academic association",null,null,null,null,null,10]
[null,"Chair – committee/ task force of professional/academic association",null,null,null,null,null,25]
[null,"Journal Editor (Per Journal)"]
[null,"Elite or AJG Level 4",null,null,null,null,null,50]
[null,"AJG Level 3",null,null,null,null,null,25]
[null,"AJG Level 2",null,null,null,null,null,15]
[null,"AJG Level 1",null,null,null,null,null,10]
[null,"Editorial Review Board (Per Journal)"]
[null,"Elite or AJG Level 4",null,null,null,null,null,20]
[null,"AJG Level 3",null,null,null,null,null,15]
[null,"AJG Level 2",null,null,null,null,null,10]
[null,"AJG Level 1",null,null,null,null,null,5]
[null,"Journal Associate Editor (Per Journal)"]
[null,"Elite or AJG Level 4",null,null,null,null,null,40]
[null,"AJG Level 3",null,null,null,null,null,20]
[null,"AJG Level 2",null,null,null,null,null,10]
[null,"AJG Level 1",null,null,null,null,null,5]
[null,"Journal Reviewer  (Per Journal)"]
[null,"Elite or AJG Level 4",null,null,null,null,null,5]
[null,"AJG Level 3",null,null,null,null,null,4]
[null,"AJG Level 2",null,null,null,null,null,3]
[null,"AJG Level 1",null,null,null,null,null,2]
[null,"Reviewer for Academic Conference/Professional Association (Per\nConference)"]
[null,"High Quality Academic Conference",null,null,null,null,null,10]
[null,"National Academic Conference",null,null,null,null,null,10]
[null,"National Specialty Research Conference",null,null,null,null,null,10]
[null,"Regional/Local Conference",null,null,null,null,null,5]
[null,"Organizer of Professional/Academic Conference (Per Conference)"]
[null,"High Quality Academic Conference",null,null,null,null,null,20]
[null,"National Academic Conference",null,null,null,null,null,15]
[null,"National Specialty Research Conference",null,null,null,null,null,10]
[null,"Regional/Local Conference",null,null,null,null,null,5]
[null,"AACSB peer reviewer on accreditation process visiting team",null,null,null,null,null,15]
[null,"Media contributions based on professional expertise",null,null,null,null,null,5]
[null,"Corporate Internship",null,null,null,null,null,10]
[null,"Other (Specify):",null,null,null,null,null,10]
[null,"Total Points",null,null,null,null,null,null,null,null,null,null,null,null,null,null,null,null,null,{"$f":"IF(SUM(T302:X305,T307:X310,T312:X315,T317:X320,T322:X325,T327:X330,T332:X339)>50,50,SUM(T302:X305,T307:X310,T312:X315,T317:X320,T322:X325,T327:X330,T332:X339))","v":0}]
[null,"C. Community Service 9/1/22 – 8/31/23 (Maximum of 40 points)"]
[null,"Board member – nonprofit organization or community group",null,null,null,null,null,15]
[null,"Community presentations",null,null,null,null,null,5]
[null,"Volunteer activities in community",null,null,null,null,null,10]
[null,"Speaking engagement to civic organizations",null,null,null,null,null,5]
[null,"Other (Specify):",null,null,null,null,null,5]
[null,"Total Points",null,null,null,null,null,null,null,null,null,null,null,null,null,null,null,null,null,{"$f":"IF(SUM(T342:X346)>40,40,SUM(T342:X346))","v":0}]
[null,"D. University Commencement 9/1/22 – 8/31/23 (Maximum of 15 points)"]
[null,"Graduation ceremonies, drive-by graduation, hooding ceremonies, and other degree-awarding ceremonies",null,null,null,null,null,"5 points each"]
[null,"Total Points",null,null,null,null,null,null,null,null,null,null,null,null,null,null,null,null,null,{"$f":"IF(SUM(T349:X349)>15,15,SUM(T349:X349))","v":0}]
[null,"E. Honors 9/1/22 – 8/31/23 (Maximum of 10 points)"]
[null,"ACOB/UTSA Service Award",null,null,null,null,null,10]
[null,"Total Points",null,null,null,null,null,null,null,null,null,null,null,null,null,null,null,null,null,{"$f":"IF(T352>10,10,T352)","v":0}]
[null,"TOTAL POINTS SERVICE A-E (0-100 points)",null,null,null,null,null,null,null,null,null,null,null,null,null,null,null,null,null,{"$f":"AP354","v":0},null,null,null,null,null,null,null,null,null,null,null,null,null,null,null,null,null,null,null,null,null,{"$f":"IF(AQ354>100,100,AQ354)","v":0},{"$f":"SUM(T300,T340,T347,T350,T353)","v":0}]
[null,"Faculty Comments/Statement Regarding Overall Service Appraisal"]
[null,"(Possible reasons for variance with the ACOB rubric are that a faculty member is: untenured, on FMLA, on approved leave, has an administrative or approved quasi-administrative assignment, or has other considerations not reflected in the ACOB rubric above.)"]

{"sheet":"Dictionary","index":2,"n_rows":13,"n_cols":4,"rows_kept":13,"cut":false,"hidden":true,"merged":[]}
["Weights","Cumulative Grant Amount (Total $)","Department","Title"]
["0%","Select List","ACC","Adjunct Professor"]
[0.1,"$ 0 up to 100,000","FIN","Assistant Professor"]
[0.2,"Over 100,000 up to 200,000","ECO","Assistant Professor of Practice"]
[0.3,"Over 200,000 up to 500,000","ISCS","Associate Professor"]
[0.4,"Over 500,00 up to 750,000","MGT","Associate Professor of Practice"]
[0.45,"Over 750,000","MSS","Doctoral Student"]
[0.5,null,"MKT","Lecturer"]
[0.6,null,null,"Professor"]
[0.7,null,null,"Professor of Practice"]
[0.8,null,null,"Senior Lecturer"]
[0.9]
[1]